bitfinex/quotes_BTCUSD_20230117
["timestamp","ask_amount","ask_price","bid_price","bid_amount"]
[1673964741209,0.01656611,21390.0,21389.0,0.319755]
[1673964741464,0.01656611,21390.0,21387.0,0.65947771]
[1673964741716,0.01456611,21390.0,21388.0,0.47720169]
[1673964741978,0.01456611,21390.0,21385.0,0.04973697]
[1673964741979,0.04417801,21389.0,21385.0,0.04973697]
[1673964742237,0.03296968,21388.0,21385.0,0.04973697]
[1673964742525,0.01120833,21389.0,21385.0,0.04973697]
[1673964742794,0.04417801,21389.0,21385.0,0.04973697]
[1673964743298,0.03296968,21388.0,21385.0,0.04973697]
[1673964743581,0.51035152,21389.0,21385.0,0.04973697]
[1673964743582,0.47874033,21389.0,21385.0,0.04973697]
[1673964743831,0.01120833,21389.0,21385.0,0.19072595]
[1673964744084,0.1,21388.0,21383.0,0.37912029]
[1673964744355,0.51170901,21389.0,21380.0,0.1504]
[1673964744611,0.50054368,21387.0,21379.0,0.42165329]
[1673964744880,0.1225,21386.0,21383.0,0.04922873]
[1673964745155,0.690117,21385.0,21377.0,6e-05]
[1673964745399,0.03296968,21384.0,21379.0,0.04835931]
[1673964745661,1.09251151,21387.0,21380.0,0.38595395]
[1673964745935,0.872682,21387.0,21380.0,0.50795395]
[1673964746230,0.42426611,21390.0,21384.0,0.52740534]
[1673964746469,0.42426611,21390.0,21387.0,0.1224]
[1673964746470,0.01456611,21390.0,21387.0,0.1224]
[1673964746726,0.01456611,21390.0,21388.0,0.51048095]
[1673964746727,0.02617446,21390.0,21388.0,0.51048095]
[1673964747006,0.01456611,21390.0,21389.0,0.51048095]
[1673964747274,0.01456611,21390.0,21389.0,0.441255]
[1673964747642,0.01456611,21390.0,21389.0,0.319755]
[1673964747817,0.11712611,21390.0,21389.0,0.319755]
[1673964748073,0.11712611,21390.0,21385.0,0.19870685]
[1673964748074,0.01319973,21389.0,21385.0,0.04786685]
[1673964748337,0.03296968,21388.0,21385.0,0.04786685]
[1673964749110,0.044916,21387.0,21385.0,0.04786685]
[1673964749363,0.23727968,21386.0,21385.0,0.04786685]
[1673964749619,0.01194632,21387.0,21382.0,0.6516499]
[1673964749870,0.01194632,21387.0,21383.0,0.47720169]
[1673964749871,0.044916,21387.0,21383.0,0.47720169]
[1673964750400,0.044916,21387.0,21382.0,0.6222099]
[1673964750660,0.044916,21387.0,21383.0,0.47720169]
[1673964750915,0.044916,21387.0,21383.0,0.66792764]
[1673964750916,0.01194632,21387.0,21383.0,0.66792764]
[1673964751169,0.01456611,21390.0,21386.0,0.1226]
[1673964751491,0.01456611,21390.0,21387.0,0.51048095]
[1673964751723,0.01456611,21390.0,21388.0,0.51048095]
[1673964751957,0.01456611,21390.0,21389.0,0.319755]
[1673964752212,0.0275964,21390.0,21389.0,0.319755]
[1673964752465,0.0275964,21390.0,21386.0,0.27632]
[1673964752747,0.03296968,21389.0,21385.0,0.16904611]
[1673964753000,0.03296968,21388.0,21385.0,0.04764611]
[1673964753261,0.01456611,21390.0,21386.0,0.47720169]
[1673964753520,0.01456611,21390.0,21385.0,0.48103265]
[1673964753521,0.02846035,21390.0,21387.0,0.319755]
[1673964753780,0.02846035,21390.0,21388.0,0.319755]
[1673964754093,0.02846035,21390.0,21386.0,0.1]
[1673964754335,0.02846035,21390.0,21385.0,0.60303265]
[1673964754336,0.03296968,21389.0,21385.0,0.60303265]
[1673964754579,0.03296968,21388.0,21385.0,0.04764611]
[1673964754854,0.52894903,21390.0,21385.0,0.04764611]
[1673964755124,0.52894903,21390.0,21385.0,0.19072595]
[1673964755671,0.06143003,21390.0,21385.0,0.19072595]
[1673964755906,0.03296968,21389.0,21385.0,0.04781575]
[1673964756164,0.467556,21388.0,21385.0,0.2385417]
[1673964756412,0.50052568,21388.0,21382.0,0.15939]
[1673964756665,0.03296968,21387.0,21382.0,0.15939]
[1673964756930,0.467556,21388.0,21382.0,0.15939]
[1673964756931,0.03296968,21386.0,21382.0,0.15939]
[1673964757187,0.03296968,21386.0,21381.0,0.1214]
[1673964757447,0.03296968,21386.0,21382.0,0.04765586]
[1673964757448,0.03296968,21385.0,21382.0,0.04765586]
[1673964757709,0.48208411,21390.0,21386.0,0.0470667]
[1673964757966,0.01456611,21390.0,21387.0,0.319755]
[1673964758235,0.01456611,21390.0,21388.0,0.319755]
[1673964758478,0.01456611,21390.0,21389.0,0.319755]
[1673964758726,0.01456611,21390.0,21389.0,1.10938264]
[1673964758991,0.01456611,21390.0,21389.0,0.91865669]
[1673964759275,0.01456611,21390.0,21389.0,0.441455]
[1673964759550,0.01456611,21390.0,21389.0,0.319755]
[1673964759786,0.01456611,21390.0,21389.0,1.03470721]
[1673964760059,0.01456611,21390.0,21389.0,1.65446221]
[1673964760336,0.01456611,21390.0,21389.0,1.35446221]
[1673964760633,0.00721781,21391.0,21390.0,0.02913222]
[1673964760897,3.583e-05,21393.0,21390.0,1.43931486]
[1673964761162,3.583e-05,21393.0,21391.0,0.319755]
[1673964761411,3.583e-05,21393.0,21392.0,0.319755]
[1673964761686,3.583e-05,21393.0,21392.0,0.91955669]
[1673964762246,0.10259583,21393.0,21390.0,0.02913222]
[1673964762501,3.583e-05,21393.0,21390.0,0.02913222]
[1673964763030,3.583e-05,21393.0,21391.0,0.47720169]
[1673964763518,0.00092383,21394.0,21392.0,0.319755]
[1673964763521,0.00092383,21394.0,21393.0,0.1]
[1673964763752,0.00092383,21394.0,21393.0,0.98625013]
[1673964764010,0.00092383,21394.0,21393.0,1.41992495]
[1673964764257,0.00092383,21394.0,21393.0,0.82122326]
[1673964764530,0.00092383,21394.0,21393.0,0.50146826]
[1673964765079,0.10348383,21394.0,21393.0,0.50146826]
[1673964765881,0.00092383,21394.0,21393.0,0.50146826]
[1673964766135,0.00092383,21394.0,21393.0,1.72274658]
[1673964766394,0.01726994,21397.0,21393.0,2.75487806]
[1673964766395,0.0114116,21397.0,21393.0,2.75487806]
[1673964766675,0.0114116,21397.0,21396.0,0.1224]
[1673964766960,0.0064116,21397.0,21396.0,1.498709]
[1673964767539,0.0064116,21397.0,21396.0,0.563955]
[1673964767796,0.0064116,21397.0,21396.0,0.319755]
[1673964768057,0.0064116,21397.0,21396.0,0.44831995]
[1673964768313,0.0064116,21397.0,21396.0,1.01327495]
[1673964769088,0.0064116,21397.0,21396.0,1.49047664]
[1673964769371,0.0064116,21397.0,21396.0,0.419755]
[1673964769372,0.02142863,21397.0,21396.0,0.419755]
[1673964769639,0.03240038,21397.0,21396.0,6e-05]
[1673964769911,0.0064116,21397.0,21396.0,6e-05]
[1673964770957,0.1064116,21397.0,21396.0,6e-05]
[1673964771476,1.3030196,21397.0,21396.0,6e-05]
[1673964771694,2.0866218,21397.0,21396.0,6e-05]
[1673964771976,1.83048826,21397.0,21396.0,6e-05]
[1673964772236,1.32059005,21397.0,21396.0,6e-05]
[1673964772530,1.96930733,21397.0,21396.0,6e-05]
[1673964772760,1.3903335,21397.0,21396.0,6e-05]
[1673964773275,1.56930224,21397.0,21396.0,6e-05]
[1673964773534,0.14588856,21397.0,21396.0,6e-05]
[1673964773848,0.24588856,21397.0,21396.0,6e-05]
[1673964774073,0.0064116,21397.0,21396.0,6e-05]
[1673964774593,0.14588856,21397.0,21396.0,6e-05]
[1673964774850,0.0064116,21397.0,21396.0,0.22331]
[1673964775138,0.0064116,21397.0,21396.0,0.34585]
[1673964775389,0.0064116,21397.0,21393.0,0.29364]
[1673964775639,0.04885895,21397.0,21392.0,0.22114622]
[1673964775898,0.03296968,21396.0,21392.0,0.04950622]
[1673964776690,0.1,21395.0,21392.0,0.04950622]
[1673964776951,0.13296968,21395.0,21392.0,0.04950622]
[1673964777216,0.4486924,21395.0,21392.0,0.04950622]
[1673964777466,0.1,21394.0,21390.0,0.00363844]
[1673964777791,0.03296968,21393.0,21390.0,0.00363844]
[1673964778058,1.24121386,21392.0,21390.0,0.00363844]
[1673964778340,0.1,21391.0,21390.0,0.00363844]
[1673964778604,0.47910322,21392.0,21390.0,0.19436439]
[1673964778861,0.8161294,21394.0,21390.0,0.00363844]
[1673964779324,0.60691396,21394.0,21390.0,0.19436439]
[1673964779343,0.03296968,21393.0,21390.0,0.00363844]
[1673964779594,0.50042968,21393.0,21390.0,0.00363844]
[1673964779851,0.70693696,21393.0,21390.0,0.00363844]
[1673964780103,0.15386106,21392.0,21390.0,0.00363844]
[1673964780421,0.467486,21391.0,21390.0,0.00363844]
[1673964781171,0.13947696,21393.0,21390.0,0.19436439]
[1673964781454,0.396777,21395.0,21391.0,0.19072595]
[1673964781748,0.0480846,21395.0,21391.0,0.1]
[1673964782022,0.0480846,21395.0,21390.0,0.78100542]
[1673964782532,0.08105428,21395.0,21390.0,0.78100542]
[1673964783566,0.08105428,21395.0,21390.0,0.59027947]
[1673964783567,0.0480846,21395.0,21390.0,0.59027947]
[1673964783825,0.08105428,21395.0,21392.0,0.1226]
[1673964784082,0.0480846,21395.0,21393.0,0.319755]
[1673964784361,0.0480846,21395.0,21394.0,0.122]
[1673964784621,0.0064116,21397.0,21394.0,0.122]
[1673964784888,0.0064116,21397.0,21395.0,0.19072595]
[1673964785148,0.0064116,21397.0,21396.0,1.04215669]
[1673964785422,0.0064116,21397.0,21396.0,0.564955]
[1673964785684,0.0064116,21397.0,21396.0,0.664955]
[1673964785966,0.0064116,21397.0,21396.0,0.564955]
[1673964786218,0.0064116,21397.0,21396.0,1.53288264]
[1673964786486,0.0064116,21397.0,21396.0,2.87553981]
[1673964786747,0.0064116,21397.0,21396.0,2.26173981]
[1673964787268,0.0014116,21397.0,21396.0,2.26173981]
[1673964787856,0.0010018,21398.0,21397.0,0.1073948]
[1673964788126,0.0010018,21398.0,21397.0,1.4397048]
[1673964788424,0.02790975,21403.0,21398.0,0.101]
[1673964788697,0.22655823,21407.0,21400.0,0.23363]
[1673964788966,0.22655823,21407.0,21403.0,0.3686]
[1673964789235,0.22655823,21407.0,21403.0,2.27740469]
[1673964789236,0.0335298,21404.0,21403.0,2.27740469]
[1673964789502,0.21591154,21410.0,21403.0,2.27740469]
[1673964789503,0.69269168,21414.0,21403.0,2.40173064]
[1673964789792,0.13947696,21414.0,21411.0,0.1235]
[1673964790079,0.13947696,21414.0,21412.0,0.319755]
[1673964790080,0.51774184,21413.0,21412.0,0.319755]
[1673964790348,0.13947696,21412.0,21404.0,0.27359719]
[1673964790618,0.02790975,21406.0,21404.0,0.27359719]
[1673964791302,0.5421148,21406.0,21404.0,0.27359719]
[1673964791522,2.24580312,21405.0,21401.0,0.04888591]
[1673964791736,1.2,21402.0,21401.0,0.04888591]
[1673964791963,2.378892,21402.0,21398.0,0.97004713]
[1673964792182,0.7226,21399.0,21398.0,0.70627706]
[1673964792405,2.079822,21399.0,21398.0,0.70627706]
[1673964792634,2.179822,21399.0,21398.0,0.70627706]
[1673964792874,4.25247845,21399.0,21397.0,1.17527484]
[1673964793098,0.2226,21398.0,21397.0,1.17527484]
[1673964793542,1.05627,21398.0,21397.0,1.17527484]
[1673964793937,1.49137568,21399.0,21397.0,1.17527484]
[1673964794198,1.09433519,21399.0,21397.0,1.17527484]
[1673964794453,1.86703785,21398.0,21397.0,1.17527484]
[1673964794709,3.0128213,21398.0,21397.0,1.17527484]
[1673964795027,2.80360586,21398.0,21397.0,1.17527484]
[1673964795238,2.61244102,21398.0,21397.0,1.36600079]
[1673964795499,1.27616816,21398.0,21397.0,1.17527484]
[1673964795768,3.41377437,21398.0,21397.0,0.2096494]
[1673964796023,3.18607201,21398.0,21397.0,0.2096494]
[1673964796283,1.18350184,21398.0,21397.0,0.2096494]
[1673964796549,1.18350184,21398.0,21397.0,0.40037535]
[1673964796798,1.18350184,21398.0,21397.0,0.2096494]
[1673964797056,1.45501104,21398.0,21397.0,0.2096494]
[1673964797316,3.34519126,21398.0,21397.0,0.2096494]
[1673964797619,3.69351349,21398.0,21397.0,0.2096494]
[1673964797841,3.69351349,21398.0,21394.0,0.04759917]
[1673964797842,0.1,21397.0,21394.0,0.04759917]
[1673964798105,1.42655745,21395.0,21394.0,0.04759917]
[1673964798416,3.25790237,21395.0,21391.0,1.37947397]
[1673964798678,3.25790237,21395.0,21391.0,0.0487593]
[1673964798679,0.83375,21392.0,21391.0,0.0487593]
[1673964799150,0.83375,21392.0,21390.0,2.62557398]
[1673964799151,0.1,21391.0,21390.0,2.62557398]
[1673964799408,0.1,21391.0,21389.0,1.64255728]
[1673964799409,1.23335623,21391.0,21389.0,1.64255728]
[1673964799660,1.71620828,21388.0,21387.0,0.00099979]
[1673964799916,2.20402257,21388.0,21387.0,0.00099979]
[1673964800178,0.1,21387.0,21385.0,6.34292223]
[1673964800438,1.64455448,21386.0,21385.0,6.34292223]
[1673964800699,5.22745728,21386.0,21385.0,6.34292223]
[1673964800959,5.36652051,21386.0,21385.0,6.0]
[1673964801228,5.36652051,21386.0,21382.0,0.54862574]
[1673964801229,0.1,21385.0,21382.0,0.54862574]
[1673964801510,1.47189354,21383.0,21382.0,0.54862574]
[1673964801774,1.47189354,21383.0,21382.0,2.574e-05]
[1673964801775,2.01289078,21383.0,21382.0,2.574e-05]
[1673964802031,1.90328765,21383.0,21382.0,2.574e-05]
[1673964802301,1.4953912,21383.0,21382.0,2.574e-05]
[1673964802562,1.5953912,21383.0,21382.0,2.574e-05]
[1673964803044,2.24301901,21383.0,21382.0,2.574e-05]
[1673964803046,1.73444234,21383.0,21382.0,2.574e-05]
[1673964803300,1.10801583,21383.0,21381.0,1.71374342]
[1673964803561,1.26183666,21382.0,21381.0,0.71374342]
[1673964803818,2.07716323,21382.0,21381.0,0.71374342]
[1673964804103,2.19976323,21382.0,21381.0,0.71374342]
[1673964804333,0.1,21381.0,21380.0,0.2056793]
[1673964804595,3.51118182,21381.0,21380.0,0.2056793]
[1673964804854,0.28218661,21379.0,21378.0,0.0010849]
[1673964805105,1.98635276,21379.0,21378.0,0.0010849]
[1673964805376,1.57805067,21379.0,21378.0,0.0010849]
[1673964805603,1.70065067,21379.0,21378.0,0.0010849]
[1673964805867,1.80895027,21379.0,21378.0,0.19181085]
[1673964806119,1.80895027,21379.0,21378.0,0.0010849]
[1673964806120,0.95823421,21379.0,21378.0,0.0010849]
[1673964807393,1.44028261,21379.0,21378.0,0.0010849]
[1673964807914,0.1,21376.0,21373.0,2.04302033]
[1673964808425,0.2226,21376.0,21373.0,2.04302033]
[1673964808922,0.1,21374.0,21373.0,2.04302033]
[1673964809243,0.2225,21374.0,21373.0,2.04302033]
[1673964810003,0.358317,21374.0,21373.0,2.04302033]
[1673964810737,0.1,21374.0,21373.0,2.04302033]
[1673964810742,0.93569,21375.0,21373.0,2.04302033]
[1673964810993,0.93569,21375.0,21373.0,2.23374628]
[1673964811261,0.93569,21375.0,21373.0,2.04302033]
[1673964811262,0.467854,21375.0,21373.0,2.04302033]
[1673964812033,0.69055757,21377.0,21373.0,2.04302033]
[1673964812306,0.1,21375.0,21373.0,2.04302033]
[1673964812838,0.1226,21374.0,21373.0,2.04302033]
[1673964813156,0.590458,21374.0,21373.0,2.04302033]
[1673964813408,0.467858,21374.0,21373.0,2.04302033]
[1673964813671,0.567853,21375.0,21373.0,2.04302033]
[1673964813938,0.00056057,21377.0,21374.0,0.66317105]
[1673964814203,0.0496565,21378.0,21375.0,0.19072595]
[1673964814691,0.0496565,21378.0,21377.0,0.1215]
[1673964814958,1.46046217,21382.0,21377.0,1.53324558]
[1673964814959,0.04794451,21380.0,21377.0,1.53324558]
[1673964815214,1.46046217,21382.0,21378.0,1.39695669]
[1673964815473,1.46046217,21382.0,21379.0,0.51048095]
[1673964815734,7.257e-05,21383.0,21381.0,0.1]
[1673964816011,0.76623636,21387.0,21383.0,0.1]
[1673964816272,0.76623636,21387.0,21383.0,0.51048095]
[1673964816537,0.76623636,21387.0,21383.0,0.319755]
[1673964817106,0.34847463,21387.0,21380.0,0.34721]
[1673964817372,0.467548,21389.0,21380.0,0.1443]
[1673964817625,0.34436,21387.0,21381.0,0.19072595]
[1673964817889,0.1,21386.0,21381.0,0.19072595]
[1673964818622,0.1035159,21386.0,21381.0,0.19072595]
[1673964818904,0.5711269,21386.0,21381.0,0.19072595]
[1673964819166,0.1,21385.0,21381.0,0.19072595]
[1673964819424,0.1,21385.0,21380.0,0.3817124]
[1673964819949,0.1,21385.0,21379.0,0.48933488]
[1673964820214,0.72579193,21385.0,21379.0,0.23896083]
[1673964820481,0.567637,21385.0,21379.0,0.23896083]
[1673964820733,0.567611,21386.0,21380.0,0.67016387]
[1673964820734,0.467611,21386.0,21380.0,0.67016387]
[1673964821008,0.467611,21386.0,21381.0,0.19072595]
[1673964821269,0.5611289,21386.0,21382.0,0.19072595]
[1673964821527,0.1,21387.0,21382.0,0.19072595]
[1673964821783,0.567589,21387.0,21382.0,0.19072595]
[1673964822333,0.567589,21387.0,21382.0,0.23989532]
[1673964822602,0.467589,21387.0,21383.0,0.19072595]
[1673964823359,0.467542,21389.0,21384.0,0.59700545]
[1673964823624,0.467542,21389.0,21385.0,0.19072595]
[1673964824132,0.67122826,21389.0,21385.0,0.19072595]
[1673964824394,0.50182662,21390.0,21385.0,0.19072595]
[1673964824633,0.50182662,21390.0,21386.0,0.19072595]
[1673964825647,0.03430162,21390.0,21386.0,0.19072595]
[1673964826231,0.03430162,21390.0,21384.0,0.57389336]
[1673964826408,0.03430162,21390.0,21384.0,0.76461931]
[1673964826658,0.59874348,21390.0,21384.0,0.57389336]
[1673964826920,0.03430162,21390.0,21385.0,0.19072595]
[1673964827422,0.03430162,21390.0,21386.0,0.44953162]
[1673964827931,0.50181762,21390.0,21386.0,0.64025757]
[1673964828198,0.03430162,21390.0,21386.0,0.64025757]
[1673964828956,0.03430162,21390.0,21386.0,0.44953162]
[1673964829450,0.03430162,21390.0,21386.0,0.64025757]
[1673964829700,0.03430162,21390.0,21387.0,0.1]
[1673964829956,0.03430162,21390.0,21386.0,0.44953162]
[1673964830208,0.03430162,21390.0,21384.0,0.04851921]
[1673964830209,1.03690311,21390.0,21384.0,0.04851921]
[1673964830457,1.59279361,21390.0,21384.0,0.04851921]
[1673964830749,1.38052397,21390.0,21384.0,0.23924516]
[1673964831009,1.17008676,21390.0,21385.0,0.29072595]
[1673964831263,1.17008676,21390.0,21386.0,0.19072595]
[1673964831264,0.02930162,21390.0,21386.0,0.19072595]
[1673964831552,0.02930162,21390.0,21386.0,0.18872595]
[1673964831810,0.02930162,21390.0,21386.0,0.19072595]
[1673964832076,0.49681262,21390.0,21385.0,0.1]
[1673964832820,0.49681262,21390.0,21385.0,0.29072595]
[1673964833091,0.49681262,21390.0,21385.0,0.28572595]
[1673964833346,0.57155226,21390.0,21384.0,0.5257606]
[1673964833601,0.73534348,21390.0,21384.0,0.71648655]
[1673964833899,0.87352713,21390.0,21384.0,0.71648655]
[1673964834150,0.22921595,21389.0,21384.0,0.04851921]
[1673964834409,0.60574565,21388.0,21384.0,0.04851921]
[1673964834660,0.13818365,21387.0,21384.0,0.04851921]
[1673964834915,0.467595,21386.0,21384.0,0.04851921]
[1673964835192,0.60574565,21388.0,21383.0,0.48820194]
[1673964835456,0.60574565,21388.0,21384.0,0.319755]
[1673964835708,0.60574565,21388.0,21381.0,0.4397]
[1673964835709,0.21182148,21387.0,21381.0,0.4397]
[1673964835961,0.935216,21386.0,21383.0,0.04993841]
[1673964836489,1.30898697,21386.0,21383.0,0.04993841]
[1673964836742,0.13818365,21384.0,21383.0,0.04993841]
[1673964836997,0.70582265,21384.0,21383.0,0.04993841]
[1673964838052,0.50759296,21382.0,21379.0,0.319755]
[1673964838310,0.64632264,21382.0,21380.0,0.319755]
[1673964838554,0.64632264,21382.0,21381.0,0.319755]
[1673964838555,0.50694899,21382.0,21381.0,0.319755]
[1673964838799,0.85359228,21382.0,21378.0,0.50730558]
[1673964839108,1.10252895,21382.0,21379.0,0.319755]
[1673964839314,0.85359228,21382.0,21380.0,0.319755]
[1673964839563,0.85359228,21382.0,21378.0,0.50730558]
[1673964839823,0.85359228,21382.0,21377.0,0.05060469]
[1673964839824,0.13937365,21381.0,21377.0,0.05060469]
[1673964840078,1.17483565,21380.0,21377.0,0.05060469]
[1673964840383,1.38210529,21380.0,21377.0,0.05060469]
[1673964840588,1.07483565,21380.0,21377.0,0.49972855]
[1673964840836,0.935462,21380.0,21377.0,0.03560469]
[1673964841088,0.07262663,21379.0,21377.0,0.03560469]
[1673964841349,0.07262663,21379.0,21374.0,0.45490001]
[1673964841350,0.46777,21378.0,21374.0,0.45490001]
[1673964841655,0.46777,21378.0,21374.0,0.00137788]
[1673964841866,0.21200028,21379.0,21375.0,0.47584382]
[1673964842123,0.54038263,21379.0,21375.0,0.47584382]
[1673964842410,0.60710465,21380.0,21375.0,0.66656977]
[1673964842664,0.66107976,21382.0,21378.0,0.53758768]
[1673964842665,0.03925799,21382.0,21378.0,0.53758768]
[1673964842932,0.03825799,21382.0,21379.0,0.51048095]
[1673964843189,0.03825799,21382.0,21379.0,0.19072595]
[1673964843433,0.03825799,21382.0,21378.0,0.39318768]
[1673964843693,0.03825799,21382.0,21380.0,0.43730289]
[1673964844228,0.03825799,21382.0,21377.0,0.0488537]
[1673964844463,0.17763164,21382.0,21377.0,0.0488537]
[1673964845011,0.20415955,21381.0,21377.0,0.0488537]
[1673964845265,1.17483565,21380.0,21377.0,0.0488537]
[1673964845762,1.38210529,21380.0,21377.0,0.0488537]
[1673964845766,0.13937365,21379.0,21377.0,0.0488537]
[1673964846028,1.17491365,21378.0,21377.0,0.0488537]
[1673964846290,1.23635835,21378.0,21374.0,0.00137788]
[1673964846544,1.31088131,21378.0,21374.0,0.00137788]
[1673964847054,0.23937365,21377.0,21374.0,0.00137788]
[1673964847305,0.935628,21376.0,21374.0,0.00137788]
[1673964847548,1.07500165,21376.0,21374.0,0.00137788]
[1673964847810,0.13822713,21375.0,21374.0,0.00137788]
[1673964848080,1.07500165,21376.0,21373.0,2.08227826]
[1673964848326,0.467858,21374.0,21373.0,2.08227826]
[1673964848577,0.467858,21374.0,21373.0,2.03439821]
[1673964849456,0.46785,21375.0,21373.0,2.03439821]
[1673964849457,0.60722365,21375.0,21373.0,2.03439821]
[1673964849631,0.46785,21375.0,21373.0,2.03439821]
[1673964850166,0.60354082,21375.0,21373.0,2.03439821]
[1673964850408,0.34664329,21374.0,21373.0,2.03439821]
[1673964850688,0.81450129,21374.0,21373.0,2.03439821]
[1673964850908,0.67714657,21374.0,21373.0,2.03439821]
[1673964851163,0.46685,21375.0,21373.0,2.03439821]
[1673964851705,0.60637402,21375.0,21373.0,2.03439821]
[1673964852008,0.1,21374.0,21373.0,2.03439821]
[1673964852265,0.99427726,21374.0,21373.0,2.03439821]
[1673964852528,0.68498869,21374.0,21373.0,2.03439821]
[1673964852774,0.54546467,21374.0,21373.0,2.03439821]
[1673964853023,0.467858,21374.0,21373.0,2.03439821]
[1673964853300,1.07421902,21375.0,21373.0,2.03439821]
[1673964853559,0.34256302,21374.0,21373.0,2.03439821]
[1673964853819,0.50871649,21374.0,21373.0,2.03439821]
[1673964854073,0.86240506,21374.0,21373.0,2.03439821]
[1673964854356,1.653164,21374.0,21373.0,2.03439821]
[1673964854632,0.43284273,21374.0,21373.0,2.03439821]
[1673964854879,1.06039559,21374.0,21373.0,2.03439821]
[1673964855130,0.76394501,21374.0,21373.0,2.03439821]
[1673964855660,0.69385682,21374.0,21373.0,2.03439821]
[1673964855995,1.64788266,21374.0,21373.0,2.03439821]
[1673964856175,2.42692365,21374.0,21373.0,1.48291121]
[1673964856426,1.826671,21374.0,21373.0,1.48291121]
[1673964856686,2.72692365,21374.0,21373.0,1.48291121]
[1673964856944,3.10855019,21374.0,21373.0,1.22902421]
[1673964857240,2.68346277,21374.0,21373.0,0.97594221]
[1673964857447,2.73604279,21374.0,21373.0,0.20792621]
[1673964857707,0.22924056,21372.0,21371.0,0.04860815]
[1673964857958,2.75926158,21372.0,21371.0,0.04860815]
[1673964858213,3.42598709,21372.0,21369.0,0.0017689]
[1673964858524,0.77091209,21370.0,21369.0,0.0017689]
[1673964858750,0.81599563,21370.0,21369.0,0.0017689]
[1673964859014,0.93589,21370.0,21369.0,0.0017689]
[1673964859549,0.42316408,21371.0,21369.0,0.0017689]
[1673964859550,0.07511345,21371.0,21369.0,0.0017689]
[1673964860085,0.21304969,21371.0,21369.0,0.0017689]
[1673964860338,0.68097969,21371.0,21369.0,0.0017689]
[1673964860598,1.49695332,21371.0,21369.0,0.0017689]
[1673964860854,1.49695332,21371.0,21368.0,2.73029105]
[1673964860855,0.1,21370.0,21368.0,2.73029105]
[1673964861180,1.00239274,21369.0,21368.0,2.73029105]
[1673964861421,1.208023,21369.0,21368.0,2.73029105]
[1673964862200,1.00239274,21369.0,21368.0,2.73029105]
[1673964862477,0.22924056,21372.0,21368.0,2.921017]
[1673964862732,0.22924056,21372.0,21369.0,0.29072595]
[1673964862983,0.22924056,21372.0,21370.0,0.19072595]
[1673964863238,0.22924056,21372.0,21371.0,0.51048095]
[1673964863239,4.056e-05,21372.0,21371.0,0.51048095]
[1673964863493,0.0645086,21378.0,21371.0,0.419755]
[1673964863770,0.07603782,21376.0,21372.0,0.19072595]
[1673964864012,0.13927738,21379.0,21373.0,0.19072595]
[1673964864262,0.13927738,21379.0,21374.0,0.19072595]
[1673964864263,6e-05,21379.0,21374.0,0.19072595]
[1673964864510,6e-05,21379.0,21375.0,0.19072595]
[1673964864801,6e-05,21379.0,21376.0,0.29072595]
[1673964865564,6e-05,21379.0,21374.0,0.49512977]
[1673964865565,6e-05,21379.0,21374.0,0.54377441]
[1673964865815,6e-05,21379.0,21375.0,0.1]
[1673964866080,6e-05,21379.0,21376.0,0.319755]
[1673964866367,6e-05,21379.0,21376.0,0.00060417]
[1673964866868,6e-05,21379.0,21375.0,0.474]
[1673964867368,6e-05,21379.0,21377.0,0.41146394]
[1673964867627,6e-05,21379.0,21378.0,0.419755]
[1673964868369,6e-05,21379.0,21377.0,0.41146394]
[1673964870638,6e-05,21379.0,21378.0,0.1]
[1673964870885,6e-05,21379.0,21378.0,0.419755]
[1673964872416,6e-05,21379.0,21378.0,1.05428095]
[1673964872715,6e-05,21379.0,21378.0,0.563555]
[1673964873168,6e-05,21379.0,21378.0,0.419755]
[1673964873420,6e-05,21379.0,21378.0,0.319755]
[1673964873672,6e-05,21379.0,21377.0,0.41146394]
[1673964874433,6e-05,21379.0,21378.0,0.419755]
[1673964875444,6e-05,21379.0,21378.0,0.563555]
[1673964875706,6e-05,21379.0,21378.0,0.863555]
[1673964875956,6e-05,21379.0,21378.0,0.563555]
[1673964876520,6e-05,21379.0,21378.0,0.419755]
[1673964876738,6e-05,21379.0,21378.0,0.1]
[1673964877239,6e-05,21379.0,21378.0,0.419755]
[1673964877501,0.13825799,21382.0,21378.0,1.04985669]
[1673964877783,0.13825799,21382.0,21381.0,0.144]
[1673964878014,0.13825799,21382.0,21381.0,1.399163]
[1673964879578,0.13825799,21382.0,21381.0,1.255163]
[1673964879831,0.13825799,21382.0,21381.0,1.71292968]
[1673964880098,0.02307774,21388.0,21382.0,0.1]
[1673964880545,0.02307774,21388.0,21385.0,0.1441]
[1673964880816,0.02307774,21388.0,21386.0,1.07807595]
[1673964881088,0.02307774,21388.0,21387.0,0.319755]
[1673964881339,0.02307774,21388.0,21387.0,0.419755]
[1673964881652,0.00307774,21388.0,21387.0,0.419755]
[1673964882670,0.00307774,21388.0,21387.0,1.02154901]
[1673964883209,0.00307774,21388.0,21387.0,0.77754901]
[1673964883480,0.00307774,21388.0,21387.0,1.02134901]
[1673964883743,0.02307774,21389.0,21388.0,0.00299226]
[1673964884009,0.0243513,21395.0,21388.0,2.89716698]
[1673964884473,0.0243513,21397.0,21394.0,0.1444]
[1673964884480,0.0243513,21397.0,21394.0,0.10692219]
[1673964884738,0.0243513,21397.0,21396.0,0.1444]
[1673964884993,0.0243513,21397.0,21396.0,0.54125724]
[1673964885506,0.27865475,21398.0,21397.0,0.1]
[1673964885773,0.20394925,21401.0,21397.0,2.7334418]
[1673964886029,0.20394925,21401.0,21399.0,0.1438]
[1673964886280,0.20394925,21401.0,21400.0,0.319755]
[1673964886537,0.20394925,21401.0,21397.0,1.53648511]
[1673964886840,0.20394925,21401.0,21397.0,1.34575916]
[1673964887050,0.20394925,21401.0,21399.0,0.1444]
[1673964887325,0.20394925,21401.0,21400.0,1.45497164]
[1673964887326,0.01949315,21401.0,21400.0,1.45497164]
[1673964887581,0.00404066,21405.0,21401.0,0.1]
[1673964887859,0.00404066,21405.0,21404.0,0.1433]
[1673964888347,0.02790975,21407.0,21405.0,0.1]
[1673964888610,0.02790975,21407.0,21406.0,1.87567269]
[1673964888858,0.02790975,21407.0,21406.0,1.97567269]
[1673964889110,0.02790975,21407.0,21406.0,1.87567269]
[1673964889384,0.02790975,21407.0,21406.0,1.398471]
[1673964889632,0.02790975,21407.0,21406.0,0.319755]
[1673964890916,0.13046975,21407.0,21406.0,0.319755]
[1673964891171,0.13046975,21407.0,21402.0,0.51705069]
[1673964891440,0.56519021,21407.0,21403.0,0.47720169]
[1673964891705,0.56519021,21407.0,21402.0,0.04981869]
[1673964891706,1.30545783,21407.0,21402.0,0.04981869]
[1673964892015,1.77261383,21407.0,21402.0,0.04981869]
[1673964892290,0.6,21404.0,21396.0,0.42403552]
[1673964892554,0.1,21403.0,21396.0,1.10372701]